Cogmind - Beta 13 *** ADVENTURER MODE // 2024.06.11 @ 10:33:15 Player: ME Result: Destroyed by P-60 Hacker with Shock Rifle Performance ------------- Evolutions (1) 500 Regions Visited (4) 800 Robots Destroyed (90) 450 Value Destroyed (2561) 2561 Prototype IDs (6) 120 Alien Tech Used (0) 0 Bonus (1206) 1206 TOTAL SCORE: 5637 Bonus ------- High Alert Combat Kills 202 Follower Combat Kills 304 Entered Garrisons 200 Used RIF Installer 500 Cogmind --------- Core Integrity 0/400 Matter 300/300 Energy 100/100 System Corruption 13% Temperature Cool (0) Movement Walking (90) Location -9/Garrison Parts ------- > --- POWER (1) -------- (None) > --- PROPULSION (2) --- VSS Leg > --- UTILITY (3) ------ Small Storage Unit > --- WEAPON (3) ------- (None) > --- INVENTORY (8) ---- Cold Fusion Reactor Improved Heat Sink Structural Scanner Signal Interpreter Drone Bay (1/2) Datajack Peak State ------------ > --- POWER ------------ Improved Ion Engine > --- PROPULSION ------- Carbon-fiber Leg VSS Leg > --- UTILITY ---------- Small Storage Unit Hardened Light Armor Plating Drone Bay > --- WEAPON ----------- Heavy Assault Rifle Improved Assault Rifle Hammer > --- INVENTORY -------- Cold Fusion Reactor VSS Leg VSS Leg Improved Heat Sink Structural Scanner Signal Interpreter Hacking Suite Datajack [Rating: 24] Favorites ----------- Power Improved Ion Engine Engine Improved Ion Engine Propulsion Carbon-fiber Leg Leg Carbon-fiber Leg Utility Small Storage Unit Device Structural Scanner Storage Small Storage Unit Hackware Hacking Suite Protection Light Armor Plating Weapon Hammer Energy Gun EM Pulse Gun Ballistic Gun Heavy Assault Rifle Impact Weapon Hammer Special Melee Weapon Datajack Build | -11 -10 -9 -9 -9 ------- Run | Yrd Mat Mat Sto Gar Slots Evolved 2 | . . 2 . . Power . | . . . . . Propulsion . | . . . . . Utility 1 | . . 1 . . Weapon 1 | . . 1 . . Parts Attached 51 | 6 4 24 10 7 Power 5 | 1 . 3 1 . Engine 5 | 1 . 3 1 . Core . | . . . . . Reactor . | . . . . . Propulsion 11 | 2 2 3 2 2 Treads . | . . . . . Leg 11 | 2 2 3 2 2 Wheel . | . . . . . Hover . | . . . . . Flight . | . . . . . Utility 12 | 1 . 4 4 3 Device 6 | . . 2 3 1 Storage 1 | 1 . . . . Processor . | . . . . . Hackware 1 | . . . . 1 Protection 4 | . . 2 1 1 Artifact . | . . . . . Weapon 23 | 2 2 14 3 2 Energy Gun 1 | 1 . . . . Energy Cannon . | . . . . . Ballistic Gun 18 | 1 1 13 3 . Ballistic Cannon . | . . . . . Launcher . | . . . . . Special Weapon . | . . . . . Impact Weapon 2 | . 1 1 . . Slashing Weapon . | . . . . . Piercing Weapon . | . . . . . Special Melee Weapon 2 | . . . . 2 Unidentified Prototypes 1 | . . . 1 . Parts Lost 12 | . . 2 1 9 Power 2 | . . 1 . 1 Propulsion 3 | . . . . 3 Utility 4 | . . 1 1 2 Weapon 3 | . . . . 3 Highest Loss Streak 8 | . . 1 1 8 To Critical Strikes . | . . . . . Average Slot Usage (%) 98 | . 98 99 99 94 Engine 11 | . 14 10 11 9 Leg 22 | . 28 21 21 21 Device 10 | . . 14 15 5 Storage 11 | . 14 11 11 11 Hackware 1 | . . . . 6 Protection 8 | . 12 7 5 9 Energy Gun 1 | . 9 . . . Ballistic Gun 19 | . 14 22 22 18 Impact Weapon 9 | . 4 11 11 10 Naked Turns . | . . . . . Heaviest Build 31 | 12 13 24 27 31 Greatest Support 30 | 20 20 30 30 27 Greatest Overweight (x) 1 | 1 . . . 1 Average Overweight (x) . | . . . . . Largest Inventory Capacity 8 | 8 8 8 8 8 Average Capacity 7 | 6 8 8 8 8 Most Carried 8 | 2 8 8 8 8 Average Carried 7 | 1 5 7 8 7 Final Capacity 8 | 8 8 8 8 8 Final Carried 8 | 2 8 8 8 8 Class Distribution -------------------- 62% | Mutant 17% | Scavenger-Mutant 12% | Hacker-Mutant 7% | Commander-Mutant Dominant Class ---------------- Mutant | -10/Materials Mutant | -9/Materials Mutant | -9/Storage Hacker-Mutant | -9/Garrison Resources | -11 -10 -9 -9 -9 ----------- Run | Yrd Mat Mat Sto Gar Matter Collected 1767 | 183 187 744 433 220 Remotely . | . . . . . Salvage Created 3125 | . 469 1221 759 676 Parts 194 | . 22 95 38 39 Haulers Intercepted 1 | . . 1 . . Recyclers Shooed 2 | . . 2 . . Parts Field Recycled . | . . . . . Retrieved Matter . | . . . . . Parts Self-Destructed . | . . . . . Prevented . | . . . . . Kills | -11 -10 -9 -9 -9 ------- Run | Yrd Mat Mat Sto Gar Combat Hostiles Destroyed 77 | . 12 29 16 20 Melee 5 | . . 1 2 2 Guns 69 | . 11 28 13 17 Classes Destroyed 11 | . 4 5 1 1 Worker 2 | . . 2 . . Hauler 1 | . . 1 . . Recycler 1 | . 1 . . . Operator 2 | . . 1 1 . Watcher 7 | . 2 4 1 . Swarmer 20 | . 6 10 . 4 Grunt 39 | . 6 10 10 13 Brawler 1 | . . 1 . . Duelist 2 | . . . 1 1 Sentry 13 | . . 8 5 . Programmer 2 | . . . . 2 Best Kill Streak 5 | . 3 5 5 4 Combat Bots Only 5 | . 3 5 5 4 Max Kills in Single Turn 2 | . 1 2 1 1 Gunslinging 1 | . . 1 . . Exploded . | . . . . . Melee 1 | . . 1 1 1 Uniques/NPCs Destroyed . | . . . . . Combat | -11 -10 -9 -9 -9 -------- Run | Yrd Mat Mat Sto Gar Hostile Shots Fired 384 | . 47 143 59 135 Missed 123 | . 20 45 30 28 Damage Taken 2557 | . 230 862 312 1153 Core 451 | . 49 112 64 226 Absorbed by Shields . | . . . . . Ignored by Resistances 764 | . 70 259 92 343 Regen/Repaired (Parts) 145 | . . 74 71 . Core Remaining (%) 90 | 100 80 . . . Volleys Fired 202 | . 32 88 47 35 Largest 2 | . 2 2 2 2 Hottest 60 | . 60 46 46 46 Shots Fired 390 | . 56 176 94 64 Gun 390 | . 56 176 94 64 Cannon . | . . . . . Launcher . | . . . . . Special . | . . . . . Kinetic 366 | . 32 176 94 64 Thermal . | . . . . . Explosive . | . . . . . Electromagnetic 24 | . 24 . . . Robot Hit Streak 17 | . 17 16 16 15 Robot Miss Streak 3 | . 2 3 2 1 Penetration Max . | . . . . . Secondary Targets 8 | . 1 3 3 1 Max Gunslinging Chain 1 | . 1 1 1 1 Shots Hit Robots 335 | . 40 134 87 74 Core Hits 133 | . 21 58 28 26 Critical Kills . | . . . . . Critical Parts Destroyed 9 | . 2 1 3 3 Critical Strikes 10 | . 3 1 3 3 Destroy 1 | . . . . 1 Corrupt 1 | . 1 . . . Smash 8 | . 2 1 3 2 Melee Attacks 99 | . 16 15 19 49 Impact 95 | . 16 15 19 45 Slashing . | . . . . . Piercing . | . . . . . Sneak Attacks 4 | . 1 1 . 2 Combat Hostiles . | . . . . . Follow-up Attacks . | . . . . . Damage Inflicted 5638 | . 642 2122 1417 1457 Guns 4088 | . 427 1820 1123 718 Cannons . | . . . . . Explosions . | . . . . . Melee 1539 | . 215 302 294 728 Ramming 11 | . . . . 11 Kinetic 3888 | . 227 1820 1123 718 Thermal . | . . . . . Explosive . | . . . . . Electromagnetic 200 | . 200 . . . Impact 1539 | . 215 302 294 728 Slashing . | . . . . . Piercing . | . . . . . Highest Corruption 13 | . . . . 13 Average Corruption 1 | . . . . 1 Corruption Purged . | . . . . . Corruption Blocked . | . . . . . Effects 6 | . . . . 6 Message Errors 3 | . . . . 3 Energy Discharges 1 | . . . . 1 Data Loss (minor) 1 | . . . . 1 Data Loss (major) 1 | . . . . 1 Overload Shots . | . . . . . Overflow Damage 370 | . 113 18 80 159 Projectiles . | . . . . . Explosions . | . . . . . Melee 370 | . 113 18 80 159 Knockbacks 7 | . 3 1 1 2 Impact 7 | . 3 1 1 2 Kinetic . | . . . . . Secondary . | . . . . . Self-Inflicted Damage . | . . . . . Shots . | . . . . . Rammed . | . . . . . Targets Rammed 7 | . . . . 7 Kicked 7 | . . . . 7 Crushed . | . . . . . Highest Temperature 99 | . 99 28 28 12 Average Temperature 13 | . 26 7 8 5 Received Heat Transfer 900 | . 126 432 135 207 Siege Activations . | . . . . . Robots Corrupted . | . . . . . Combat Hostiles . | . . . . . Parts Fried 7 | . 5 . 1 1 Impact Corruptions 18 | . 3 1 3 11 Robots Melted . | . . . . . Combat Hostiles . | . . . . . Parts Melted 1 | . . . . 1 Heat Transferred . | . . . . . Parts Sabotaged . | . . . . . Parts Stolen . | . . . . . Parts Stripped . | . . . . . Power Chain Reactions . | . . . . . Alert | -11 -10 -9 -9 -9 ------- Run | Yrd Mat Mat Sto Gar Peak Influence 670 | . 245 643 542 670 Initial 194 | . . 54 34 194 Average 312 | . 103 360 290 462 Maximum Alert Level 2 | . 1 2 2 2 Low Security (%) 29 | 100 80 21 13 9 Level 1 38 | . 19 30 79 26 Level 2 32 | . . 48 7 63 Level 3 . | . . . . . Level 4 . | . . . . . Level 5 . | . . . . . High Security . | . . . . . Max Security . | . . . . . Squads Dispatched 7 | . 3 1 3 . Investigation 5 | . 3 . 2 . Extermination . | . . . . . Reinforcement 2 | . . 1 1 . Assault . | . . . . . Garrison . | . . . . . Intercept . | . . . . . Searches Triggered . | . . . . . Construction Impeded . | . . . . . Haulers Reinforced . | . . . . . Active Scanning Responses . | . . . . . Cargo Convoy Interrupts . | . . . . . Stealth | -11 -10 -9 -9 -9 --------- Run | Yrd Mat Mat Sto Gar Distress Signals 6 | . 2 1 3 . Communications Jammed . | . . . . . Distress Signals . | . . . . . Times Spotted 110 | . 17 38 27 28 Peak Tracking Total 7 | . 3 4 7 5 Tactical Retreats 2 | . 2 . . . Traps | -11 -10 -9 -9 -9 ------- Run | Yrd Mat Mat Sto Gar Traps Triggered 4 | . 2 . 1 1 Indirectly . | . . . . . Trap Hack Attempts . | . . . . . Triggered . | . . . . . Disarmed . | . . . . . Reprogrammed . | . . . . . Reused . | . . . . . Traps Extracted . | . . . . . Installed . | . . . . . Triggered . | . . . . . Machines | -11 -10 -9 -9 -9 ---------- Run | Yrd Mat Mat Sto Gar Machines Disabled 2 | . . . 2 . Max in Single Turn 1 | . . . 1 . Machines Repaired . | . . . . . Machines Dismantled . | . . . . . Machines Sabotaged . | . . . . . Overloaded Fab Kills . | . . . . . Hacking | -11 -10 -9 -9 -9 --------- Run | Yrd Mat Mat Sto Gar Machines Accessed 28 | . 10 7 8 3 Terminals 22 | . 8 5 6 3 Fabricators . | . . . . . Repair Stations 3 | . 1 1 1 . Recycling Units 2 | . 1 1 . . Scanalyzers . | . . . . . Garrison Access 1 | . . . 1 . Total Hacks 56 | . 17 15 19 5 Successful 38 | . 13 11 12 2 Failed 18 | . 4 4 7 3 Catastrophic 4 | . . 2 . 2 Database Lockouts . | . . . . . Manual 1 | . 1 . . . Terminals 45 | . 15 10 15 5 Fabricators . | . . . . . Repair Stations 8 | . 1 4 3 . Recycling Units 2 | . 1 1 . . Scanalyzers . | . . . . . Garrison Access 1 | . . . 1 . Terminal Hacks 30 | . 11 8 9 2 Part Schematic 3 | . . . 3 . Robot Analysis 1 | . 1 . . . Prototype ID Bank 3 | . 1 1 1 . Open Door 4 | . . . 3 1 Branch Access Points 2 | . 1 . 1 . Emergency Access Points 3 | . 1 1 . 1 Terminal Index 1 | . 1 . . . Alert Level 6 | . 3 2 1 . Unreport Threat 3 | . 1 2 . . Locate Traps 1 | . . 1 . . Zone Layout 3 | . 2 1 . . Fabricator Hacks . | . . . . . Repair Station Hacks 5 | . 1 2 2 . Scan Component 2 | . . 1 1 . Repair 2 | . . 1 1 . Refit 1 | . 1 . . . Recycling Unit Hacks 2 | . 1 1 . . Report Inventory 2 | . 1 1 . . Scanalyzer . | . . . . . Garrison Access Hacks 1 | . . . 1 . Unlock Access 1 | . . . 1 . Unauthorized Hacks . | . . . . . Terminals . | . . . . . Fabricators . | . . . . . Repair Stations . | . . . . . Recycling Units . | . . . . . Scanalyzers . | . . . . . Garrison Access . | . . . . . Data Cores Recovered . | . . . . . Used . | . . . . . Hacking Detections 14 | . 4 3 5 2 Full Trace Events 3 | . 1 . 1 1 Feedback Events 1 | . . . . 1 Corruption 1 | . . . . 1 Feedback Blocked . | . . . . . Robot Schematics Acquired . | . . . . . Robots Built . | . . . . . Authchips . | . . . . . Time . | . . . . . Total Robot Build Rating . | . . . . . Part Schematics Acquired 3 | . . . 3 . Parts Built . | . . . . . Authchips . | . . . . . Time . | . . . . . Total Part Build Rating . | . . . . . Parts Repaired 2 | . . 1 1 . Time 57 | . . 38 19 . Parts Recycled . | . . . . . Recycled Matter . | . . . . . Retrieved Matter . | . . . . . Retrieved Components . | . . . . . Parts Scanalyzed . | . . . . . Part Schematics Acquired . | . . . . . Parts Damaged . | . . . . . Bothacking | -11 -10 -9 -9 -9 ------------ Run | Yrd Mat Mat Sto Gar Used RIF Installer 1 | . . . . 1 Robots Hacked 1 | . . . . 1 Non-combat . | . . . . . Combat 1 | . . . . 1 Robot Hacks Applied 1 | . . . . 1 parse_system 1 | . . . . 1 Relay Couplers Released . | . . . . . Fabnet Peak Effective % . | . . . . . Robots Rewired 2 | . . . . 2 Allies Hacked . | . . . . . Hacks Repelled . | . . . . . Allies | -11 -10 -9 -9 -9 -------- Run | Yrd Mat Mat Sto Gar Total Allies 12 | . . . 10 2 Largest Group 10 | . . . 10 9 Highest-Rated Group 88 | . . . 88 80 Highest-Rated Ally 39 | . . . 16 39 Total Orders 9 | . . . 3 6 GUARD 1 | . . . . 1 EXPLORE 6 | . . . 3 3 RETURN 2 | . . . . 2 Ally Attacks 103 | . . . 25 78 Total Damage 985 | . . . 216 769 Kills 15 | . . . 7 8 Allies Corrupted . | . . . . . Allies Melted . | . . . . . Intel | -11 -10 -9 -9 -9 ------- Run | Yrd Mat Mat Sto Gar Robot Analysis Total 1 | . 1 . . . Derelict Logs Recovered . | . . . . . Drone Launches 8 | . . . 4 4 Drone Recoveries 6 | . . . 3 3 Exploration | -11 -10 -9 -9 -9 ------------- Run | Yrd Mat Mat Sto Gar Turns Passed 3556 | 70 629 1313 817 727 Spaces Moved 1916 | 52 408 751 399 306 Core 7 | 7 . . . . Treads . | . . . . . Legs 1909 | 45 408 751 399 306 Wheels . | . . . . . Hover . | . . . . . Flight . | . . . . . Fastest Speed 50 | 50 120 120 105 90 Average Speed 117 | 115 120 120 108 118 Slowest Speed 185 | 120 120 120 120 185 Overloaded Moves . | . . . . . Propulsion Burnouts . | . . . . . Robots Hopped . | . . . . . Cave-ins Triggered . | . . . . . Exploration Rate (%) 55 | 4 79 60 74 62 Regions Visited 4 Branch Regions 1 Pre-discovered Areas . | . . . . . Known Exits Taken 1 | . . . 1 . Unknown Exits Taken 3 | 1 1 1 . . Scrap Searched . | . . . . . Spaces Dug 5 | . 3 1 1 . Terrain Destroyed 5 | . 3 1 1 . Melee 5 | . 3 1 1 . Projectile . | . . . . . AOE . | . . . . . Terrain Rammed . | . . . . . Walls Destroyed . | . . . . . Machines Disabled . | . . . . . Actions | -11 -10 -9 -9 -9 --------- Run | Yrd Mat Mat Sto Gar Total 2689 | 59 465 974 667 524 Wait 358 | . 1 63 181 113 Move 1912 | 51 407 750 398 306 Hop . | . . . . . Pick Up 18 | 2 4 11 1 . Fast Attach 15 | 6 . 3 6 . Attach 7 | . . 3 . 4 Detach 3 | . . . 1 2 Swap 29 | . 4 18 4 3 Drop 31 | . 1 23 7 . Fire 202 | . 32 88 47 35 Melee 99 | . 16 15 19 49 Ram . | . . . . . Kick 7 | . . . . 7 Crush . | . . . . . Escape Stasis 5 | . . . . 5 Rewire 3 | . . . 3 . Trap . | . . . . . Miscellaneous . | . . . . . Route ------- -11/Scrapyard -10/Materials (discovered 5 exits: *Mat x3 / *Min x2) -9/Materials (discovered 5 exits: [*Mat x2] / [*Min] / *Sto x2) -9/Storage (discovered 3 exits: [*Mat] / Rec / Gar) -9/Garrison (discovered 2 exits: *Rec x2) History --------- Turn | Location | Event 10 | -11/Scrapyard | Discovered new exit (range 15) 71 | -11/Scrapyard | Entered Materials 161 | -10/Materials | Discovered new exit (range 5) 171 | -10/Materials | Identified exit to Mines 304 | -10/Materials | Discovered new exit (range 3) 315 | -10/Materials | Build established: Mutant 666 | -10/Materials | Discovered new exit (range 5) 700 | -10/Materials | Entered another Materials area 700 | -9/Materials | Evolved 2 slots: Utility x1, Weapon x1 1175 | -9/Materials | Discovered new exit (range 10) 1243 | -9/Materials | Discovered new exit (range 14) 1267 | -9/Materials | Discovered new exit (range 16) 1304 | -9/Materials | Discovered new exit (range 16) 1388 | -9/Materials | Discovered new exit (range 11) 1605 | -9/Materials | Repaired Carbon-fiber Leg 1664 | -9/Materials | Build established: Scavenger-Mutant 2013 | -9/Materials | Entered Storage 2076 | -9/Storage | Build established: Mutant 2218 | -9/Storage | Identified exit to Recycling 2483 | -9/Storage | Discovered new exit (range 16) 2677 | -9/Storage | Assisted by bots powering up and referring to "LRC-V3" 2807 | -9/Storage | Repaired Carbon-fiber Leg 2815 | -9/Storage | Identified exit to Garrison 2830 | -9/Storage | Entered Garrison 2830 | -9/Garrison | Accompanied by 9 allies 2926 | -9/Garrison | Lost 3 allies 2928 | -9/Garrison | Triggered checkpoint 2989 | -9/Garrison | Lost 4 allies 3006 | -9/Garrison | Triggered checkpoint 3016 | -9/Garrison | Triggered checkpoint 3088 | -9/Garrison | Triggered checkpoint 3127 | -9/Garrison | Lost 3 allies 3211 | -9/Garrison | Discovered exit to Recycling (range 9) 3278 | -9/Garrison | Core integrity fell below 50% 3281 | -9/Garrison | Triggered checkpoint 3336 | -9/Garrison | Triggered checkpoint 3414 | -9/Garrison | Build established: Hacker-Mutant 3427 | -9/Garrison | Installed Relay Interface Framework 3444 | -9/Garrison | Discovered exit to Recycling (range 3) 3487 | -9/Garrison | P-60 Hacker assimilated allied O8-A47(b) 3534 | -9/Garrison | Core integrity fell below 20% 3537 | -9/Garrison | System corruption reached 10% 3557 | -9/Garrison | Destroyed by P-60 Hacker with Shock Rifle Last Messages --------------- P-60 Hacker suffers critical hit (Smash). Destroyed Imp. Heat Sink. Destroyed Target Analyzer. P-60 Hacker system corrupted by crushing effect. CNR9 VYTWQWTU/XXPLQ,TUYI2%> VSS Leg destroyed. Hacking Suite destroyed. Hammer destroyed. Jacked P-60 Hacker... >>parse_system Reading system data... Jacked P-60 Hacker... Kicked P-60 Hacker. P-60 Hacker heat damages Gravmag System. Kicked P-60 Hacker out of the way. Acquired 5 matter. Kicked P-60 Hacker out of the way. Q1%,D4JBXWFJEI4IP6TZWX2# FW 8LRZCWFNYVK Kicked P-60 Hacker. Map ----- +----------------------------------------------------+ | ?????????????# !##########??????????????????????? | | ?????????????# #???????????????????????????????? | | ?????????????# #???????????????????????????????? | | ?????????????# !#???????????????????????????????? | | ?????????????#=%#???????????????????????????????? | | ?????????????+ [#???????????????????????????????? | | ?????????????# #???????????????????????????????? | | ?????????????# #???????????????????????????????? | | ????????????# #???????????????????????????????? | | ###+##??????#/ #???????????????????????????????? | | !%########% #???????????????????????????????? | | =!=!%!**==!*!#???????????????????????????????? | | =!=*=%[=%*= #???????????????????????????????? | | ## !*###########???????????????????????????????? | | ## %*###???????????????????????????????????????? | | * #???????????????????????????????????????? | | #???????????????????????????????????????? | | ###?????????????????????????????????????? | | + #?????????????????????????????????????? | | ##! ### #?????????????????????????????????????? | | ##%[ #?# #?????????????????????????????????????? | | *= #?# #?????????????????????????????????????? | | #?# #?????????????????+???????????????????? | | #?# #?????????????????????????????????????? | | ## ### ################+###+#????????????????? | | ## " =!%!%@p[% #????????????????? | | ### ### #############!##+###+#????????????????? | | ??# #?# #???????????#=#???????????????????????? | | ??# #?# #???????????#%#???+???????????????????? | | ??# #?# #???????????# #???????????????????????? | | ??# #?#+#############"#################???????? | | ??# ? #???????? | | ??# ? #???????? | | ??# ? #???????? | | ??##+###?++#####+###### ############ < #???????? | | ??????????????????????# #??????????# #???????? | | ??????????????????????# !#??????######/##???????? | | ????????#++#####+###### #??????#"T"## #????????? | | ????????# %[#??????#" #????????? | | ????????+ #??????###### #????????? | | ?????????# ##### #####???????????# #????????? | | ?????????????????# #???????????????# #????????? | | ?????????????????##"##???###########?# ########?? | | ??????????????????# ###### ### ## """"#?? | | ??????????????????# "#?? | | ??????????????????# ###### ###### """"#?? | | ?????????????????## ##???# " #????#######?? | | ?????????????????#T #???#"" """ #????????????? | | ?????????????????## ###?#" " #????????????? | | ?????????????????# #?#" #????????????? | +----------------------------------------------------+ Best States ------------- Heat Dissipation 38 Energy Generation 12 Energy Capacity 265 Matter Stores 300 Matter Capacity 300 Sight Range 16 Terrain Scan Density 10 Armor Coverage 150 Resistance: KI 20 Resistance: TH 20 Resistance: EX 20 Resistance: EM 20 Resistance: I 20 Resistance: S 20 Resistance: P 20 Evasion (%) 55 Offensive Hacking 20 Item Schematics ----------------- Imp. Utility Shielding | -9/Storage | Hacked Imp. Melee Analysis Suite | -9/Storage | Hacked Energy Filter | -9/Storage | Hacked Robot Schematics ------------------ None Fabricated ------------ Nothing Alien Tech Used ----------------- None Achievements -------------- None Challenges ------------ None Game ------ Seed EnhancedCentriumCannon Manual? 0 Play Time 00:36:00 Cumulative 27.2 hours Start 2024.06.10 @ 11:26:09 End 2024.06.11 @ 10:33:15 Sessions 3 Manual Loads 0 Difficulty Adventurer Special Mode None Game No. 41 Rogue 0 Adventurer 41 Explorer 0 Win Type - Total 0 Types 0/0/0/0/0/0/0/0/0 Lore% 22 Gallery% 34 Achievement% 28 Wizard Run 0 Options --------- Layout 1 ASCII 0 Keyboard 0 Movement Numpad Keybinds 0 Fullscreen 1 Font 24/Smallcaps Map View 50x35 Zoom Use 0% Tactical HUD 0 Map Filters NONE Filters NONE Steam 1 RUN: 35aa68a1-419f-4fd1-acf4-cb8628b02199